[Event "Late-Titled-Tuesday-Blitz-April-16-2024"]
[Site "Chess.com"]
[Date "2024.04.16"]
[Round "4"]
[White "Sanyura"]
[Black "IndianSchoolOfSuffering"]
[Result "1-0"]
[WhiteElo "2607"]
[BlackElo "2436"]
[TimeControl "180+1"]
[EndTime "14:32:25 PDT"]
[Termination "Sanyura won by resignation"]

1. e4 {[%clk 0:03:00.9]} 1... c6 {[%clk 0:02:58.7]} 2. d4 {[%clk 0:03:01.1]}
2... d5 {[%clk 0:02:57.8]} 3. Nc3 {[%clk 0:03:01.6]} 3... dxe4 {[%clk
0:02:56.9]} 4. Nxe4 {[%clk 0:03:01.6]} 4... Nf6 {[%clk 0:02:57.8]} 5. Nxf6+
{[%clk 0:03:01.4]} 5... exf6 {[%clk 0:02:58.7]} 6. c3 {[%clk 0:03:01.8]} 6...
Bd6 {[%clk 0:02:59.2]} 7. Bd3 {[%clk 0:03:02.5]} 7... O-O {[%clk 0:02:59.3]} 8.
Ne2 {[%clk 0:03:03.1]} 8... Re8 {[%clk 0:02:59.4]} 9. Qc2 {[%clk 0:03:03.7]}
9... h5 {[%clk 0:02:58.9]} 10. O-O {[%clk 0:03:04.3]} 10... h4 {[%clk
0:02:56.2]} 11. h3 {[%clk 0:03:04.7]} 11... Qc7 {[%clk 0:02:55.6]} 12. Be3
{[%clk 0:03:03.9]} 12... Nd7 {[%clk 0:02:53.8]} 13. c4 {[%clk 0:03:02.9]} 13...
c5 {[%clk 0:02:52.8]} 14. Rfe1 {[%clk 0:03:00.9]} 14... a6 {[%clk 0:02:51]} 15.
Rad1 {[%clk 0:03:00.6]} 15... cxd4 {[%clk 0:02:42.8]} 16. Nxd4 {[%clk
0:02:58.5]} 16... Nc5 {[%clk 0:02:42]} 17. Bf5 {[%clk 0:02:56.2]} 17... g6
{[%clk 0:02:14.6]} 18. Bxg6 {[%clk 0:02:50.3]} 18... Bd7 {[%clk 0:02:01.8]} 19.
Bxf7+ {[%clk 0:02:48]} 1-0

[Event "Late-Titled-Tuesday-Blitz-April-16-2024"]
[Site "Chess.com"]
[Date "2024.04.16"]
[Round "4"]
[White "Alexei_Gubajdullin"]
[Black "Doublekk14"]
[Result "1-0"]
[WhiteElo "2609"]
[BlackElo "2392"]
[TimeControl "180+1"]
[EndTime "14:32:30 PDT"]
[Termination "Alexei_Gubajdullin won by resignation"]

1. Nf3 {[%clk 0:03:00.9]} 1... Nf6 {[%clk 0:02:57.2]} 2. g3 {[%clk 0:03:01]}
2... d5 {[%clk 0:02:53]} 3. Bg2 {[%clk 0:03:01.6]} 3... c5 {[%clk 0:02:53.9]} 4.
O-O {[%clk 0:03:01.8]} 4... e6 {[%clk 0:02:54.1]} 5. d3 {[%clk 0:03:02]} 5...
Nc6 {[%clk 0:02:54.6]} 6. Nbd2 {[%clk 0:03:02.5]} 6... Be7 {[%clk 0:02:55]} 7.
e4 {[%clk 0:03:02.9]} 7... dxe4 {[%clk 0:02:54.8]} 8. dxe4 {[%clk 0:03:02.6]}
8... O-O {[%clk 0:02:55]} 9. e5 {[%clk 0:03:02.1]} 9... Nd5 {[%clk 0:02:50]} 10.
Ne4 {[%clk 0:03:01.2]} 10... Qc7 {[%clk 0:02:33.4]} 11. c4 {[%clk 0:03:00.5]}
11... Nb6 {[%clk 0:02:31.3]} 12. Qc2 {[%clk 0:02:52.9]} 12... Nxe5 {[%clk
0:02:25.8]} 13. Nfg5 {[%clk 0:02:48.4]} 13... Ng6 {[%clk 0:02:18.2]} 14. h4
{[%clk 0:02:46.3]} 14... h6 {[%clk 0:02:03]} 15. h5 {[%clk 0:02:45]} 15... Nh8
{[%clk 0:02:01.9]} 16. Nf6+ {[%clk 0:02:43.6]} 1-0

[Event "Late-Titled-Tuesday-Blitz-April-16-2024"]
[Site "Chess.com"]
[Date "2024.04.16"]
[Round "4"]
[White "volcanoexplorer"]
[Black "arturdailima"]
[Result "1-0"]
[WhiteElo "2636"]
[BlackElo "2406"]
[TimeControl "180+1"]
[EndTime "14:32:46 PDT"]
[Termination "volcanoexplorer won by resignation"]

1. e4 {[%clk 0:03:00.9]} 1... Nf6 {[%clk 0:02:59.6]} 2. Nc3 {[%clk 0:03:00.5]}
2... d5 {[%clk 0:02:57.3]} 3. exd5 {[%clk 0:03:00.6]} 3... Nxd5 {[%clk
0:02:57.1]} 4. Nf3 {[%clk 0:02:59.3]} 4... Bg4 {[%clk 0:02:49.5]} 5. Bc4 {[%clk
0:02:57.4]} 5... e6 {[%clk 0:02:48.9]} 6. h3 {[%clk 0:02:55.4]} 6... Bh5 {[%clk
0:02:48.8]} 7. d4 {[%clk 0:02:52]} 7... c6 {[%clk 0:02:48.7]} 8. g4 {[%clk
0:02:44.4]} 8... Bg6 {[%clk 0:02:48.6]} 9. Qe2 {[%clk 0:02:41]} 9... Nd7 {[%clk
0:02:48.4]} 10. h4 {[%clk 0:02:39.9]} 10... h5 {[%clk 0:02:46.9]} 11. g5 {[%clk
0:02:31.9]} 11... N7b6 {[%clk 0:02:37.4]} 12. Bd3 {[%clk 0:02:29.3]} 12... Bxd3
{[%clk 0:02:35.3]} 13. Qxd3 {[%clk 0:02:30.2]} 13... Nb4 {[%clk 0:02:34.2]} 14.
Qe2 {[%clk 0:02:27.3]} 14... c5 {[%clk 0:02:32.8]} 15. Be3 {[%clk 0:02:23.2]}
15... cxd4 {[%clk 0:02:29.8]} 16. Bxd4 {[%clk 0:02:22.5]} 16... Nc6 {[%clk
0:02:26.4]} 17. O-O-O {[%clk 0:02:19.2]} 17... Nxd4 {[%clk 0:02:25.9]} 18. Rxd4
{[%clk 0:02:17.7]} 18... Qc7 {[%clk 0:02:24.2]} 19. g6 {[%clk 0:02:17.4]} 19...
Bc5 {[%clk 0:02:15.3]} 20. gxf7+ {[%clk 0:02:17.3]} 20... Kxf7 {[%clk
0:02:12.9]} 21. Ng5+ {[%clk 0:02:17.1]} 21... Kf8 {[%clk 0:02:11.8]} 22. Nxe6+
{[%clk 0:02:16.8]} 1-0

[Event "Late-Titled-Tuesday-Blitz-April-16-2024"]
[Site "Chess.com"]
[Date "2024.04.16"]
[Round "4"]
[White "manitodeplomo"]
[Black "FabianoCaruana"]
[Result "0-1"]
[WhiteElo "2641"]
[BlackElo "3076"]
[TimeControl "180+1"]
[EndTime "14:32:57 PDT"]
[Termination "FabianoCaruana won by resignation"]

1. g3 {[%clk 0:02:57.9]} 1... d5 {[%clk 0:02:59.7]} 2. Bg2 {[%clk 0:02:58.4]}
2... Nf6 {[%clk 0:03:00.5]} 3. c4 {[%clk 0:02:58.8]} 3... e6 {[%clk 0:03:01.4]}
4. Nf3 {[%clk 0:02:58.4]} 4... Be7 {[%clk 0:03:01.5]} 5. O-O {[%clk 0:02:58.7]}
5... O-O {[%clk 0:03:02.4]} 6. Nc3 {[%clk 0:02:58.9]} 6... d4 {[%clk 0:03:02.1]}
7. Na4 {[%clk 0:02:58.6]} 7... c5 {[%clk 0:03:01.2]} 8. b4 {[%clk 0:02:56.9]}
8... cxb4 {[%clk 0:03:00.7]} 9. a3 {[%clk 0:02:54.9]} 9... Nc6 {[%clk
0:02:59.6]} 10. axb4 {[%clk 0:02:54.3]} 10... Bxb4 {[%clk 0:03:00.5]} 11. d3
{[%clk 0:02:54.4]} 11... h6 {[%clk 0:02:57.6]} 12. Ba3 {[%clk 0:02:54.8]} 12...
a5 {[%clk 0:02:56.9]} 13. Bxb4 {[%clk 0:02:51.6]} 13... axb4 {[%clk 0:02:57.8]}
14. Qb3 {[%clk 0:02:51.7]} 14... e5 {[%clk 0:02:54.3]} 15. Ne1 {[%clk 0:02:48]}
15... Bg4 {[%clk 0:02:47.8]} 16. f3 {[%clk 0:02:43.5]} 16... Be6 {[%clk
0:02:45.3]} 17. Nc2 {[%clk 0:02:43.8]} 17... b5 {[%clk 0:02:41.7]} 18. Nb2
{[%clk 0:02:42]} 18... bxc4 {[%clk 0:02:38.1]} 19. Nxc4 {[%clk 0:02:42.9]} 19...
Rxa1 {[%clk 0:02:30.7]} 20. Rxa1 {[%clk 0:02:41.1]} 20... Nd5 {[%clk 0:02:31.2]}
21. f4 {[%clk 0:02:29.3]} 21... exf4 {[%clk 0:02:32.1]} 22. Bxd5 {[%clk
0:02:29.7]} 22... Bxd5 {[%clk 0:02:26.3]} 23. Nxb4 {[%clk 0:02:30.2]} 23... Nxb4
{[%clk 0:02:24.4]} 24. Qxb4 {[%clk 0:02:31.1]} 24... fxg3 {[%clk 0:02:23]} 25.
hxg3 {[%clk 0:02:31.3]} 25... Qg5 {[%clk 0:02:12.8]} 26. Qd6 {[%clk 0:02:29.2]}
26... Qh5 {[%clk 0:02:11.9]} 0-1

[Event "Late-Titled-Tuesday-Blitz-April-16-2024"]
[Site "Chess.com"]
[Date "2024.04.16"]
[Round "4"]
[White "Giantgoogachess"]
[Black "2L8IWUN"]
[Result "0-1"]
[WhiteElo "2297"]
[BlackElo "2079"]
[TimeControl "180+1"]
[EndTime "14:34:19 PDT"]
[Termination "2L8IWUN won by resignation"]

1. Nf3 {[%clk 0:03:00.9]} 1... Nf6 {[%clk 0:03:00.3]} 2. d4 {[%clk 0:03:00.7]}
2... d5 {[%clk 0:02:59.3]} 3. Bf4 {[%clk 0:03:01.4]} 3... c5 {[%clk 0:02:58.9]}
4. e3 {[%clk 0:03:00.9]} 4... Nc6 {[%clk 0:02:55.7]} 5. Nc3 {[%clk 0:03:00.2]}
5... cxd4 {[%clk 0:02:54.3]} 6. exd4 {[%clk 0:02:59.4]} 6... a6 {[%clk
0:02:53.2]} 7. Ne5 {[%clk 0:02:59.9]} 7... Bd7 {[%clk 0:02:43.9]} 8. Nxd7 {[%clk
0:02:56.3]} 8... Qxd7 {[%clk 0:02:41.1]} 9. Be2 {[%clk 0:02:47.7]} 9... e6
{[%clk 0:02:39.6]} 10. O-O {[%clk 0:02:48.4]} 10... Bd6 {[%clk 0:02:38.9]} 11.
Bxd6 {[%clk 0:02:48.4]} 11... Qxd6 {[%clk 0:02:39.8]} 12. Na4 {[%clk 0:02:45.6]}
12... Nd7 {[%clk 0:02:36.5]} 13. c3 {[%clk 0:02:42]} 13... b5 {[%clk 0:02:34.6]}
14. Nc5 {[%clk 0:02:40.4]} 14... Nxc5 {[%clk 0:02:33.2]} 15. dxc5 {[%clk
0:02:41.3]} 15... Qxc5 {[%clk 0:02:33.4]} 16. b4 {[%clk 0:02:40.8]} 16... Qd6
{[%clk 0:02:29.2]} 17. a4 {[%clk 0:02:40.9]} 17... O-O {[%clk 0:02:16.1]} 18.
axb5 {[%clk 0:02:39.2]} 18... axb5 {[%clk 0:02:17]} 19. Bxb5 {[%clk 0:02:39.5]}
19... Ne5 {[%clk 0:02:14]} 20. Qe2 {[%clk 0:02:37.5]} 20... Qc7 {[%clk
0:02:08.3]} 21. f4 {[%clk 0:02:29.1]} 21... Ng6 {[%clk 0:02:05.3]} 22. Rxa8
{[%clk 0:02:19.6]} 22... Rxa8 {[%clk 0:02:03.4]} 23. f5 {[%clk 0:02:16.5]} 23...
exf5 {[%clk 0:01:50.6]} 24. Rxf5 {[%clk 0:02:15.2]} 24... Qxc3 {[%clk
0:01:45.1]} 25. h3 {[%clk 0:02:04.9]} 25... Qxb4 {[%clk 0:01:37.1]} 26. Bc6
{[%clk 0:01:37.9]} 26... Qc5+ {[%clk 0:01:24.4]} 0-1

[Event "Late-Titled-Tuesday-Blitz-April-16-2024"]
[Site "Chess.com"]
[Date "2024.04.16"]
[Round "4"]
[White "Kimkibo"]
[Black "WilsonPalencia21"]
[Result "0-1"]
[WhiteElo "2380"]
[BlackElo "2579"]
[TimeControl "180+1"]
[EndTime "14:34:24 PDT"]
[Termination "WilsonPalencia21 won by resignation"]

1. d4 {[%clk 0:02:57.6]} 1... Nf6 {[%clk 0:02:56.5]} 2. Nf3 {[%clk 0:02:54.9]}
2... c5 {[%clk 0:02:56.4]} 3. d5 {[%clk 0:02:54.6]} 3... g6 {[%clk 0:02:56.2]}
4. c4 {[%clk 0:02:53.8]} 4... Bg7 {[%clk 0:02:55.9]} 5. Nc3 {[%clk 0:02:53.6]}
5... d6 {[%clk 0:02:56.3]} 6. e4 {[%clk 0:02:52.7]} 6... O-O {[%clk 0:02:57.2]}
7. Bd3 {[%clk 0:02:50.3]} 7... e6 {[%clk 0:02:57.4]} 8. O-O {[%clk 0:02:48.6]}
8... exd5 {[%clk 0:02:57.7]} 9. cxd5 {[%clk 0:02:48.2]} 9... a6 {[%clk
0:02:58.2]} 10. a4 {[%clk 0:02:46.9]} 10... Bg4 {[%clk 0:02:58.9]} 11. h3 {[%clk
0:02:45.8]} 11... Bxf3 {[%clk 0:02:59.3]} 12. Qxf3 {[%clk 0:02:41.8]} 12... Nbd7
{[%clk 0:02:58.2]} 13. Bf4 {[%clk 0:02:41]} 13... Qe7 {[%clk 0:02:57.9]} 14. Qg3
{[%clk 0:02:24.8]} 14... Ne8 {[%clk 0:02:29.2]} 15. Rae1 {[%clk 0:02:23.2]}
15... Ne5 {[%clk 0:02:27.3]} 16. Bxe5 {[%clk 0:02:22.6]} 16... Bxe5 {[%clk
0:02:26.6]} 17. f4 {[%clk 0:02:22.6]} 17... Bd4+ {[%clk 0:02:22.3]} 18. Kh1
{[%clk 0:02:22.5]} 18... Bf6 {[%clk 0:02:18.9]} 19. e5 {[%clk 0:02:20.9]} 19...
Bh4 {[%clk 0:02:16.9]} 20. exd6 {[%clk 0:02:16.6]} 20... Qxe1 {[%clk 0:02:14.2]}
21. Qxe1 {[%clk 0:02:15.3]} 21... Bxe1 {[%clk 0:02:14.1]} 22. Rxe1 {[%clk
0:02:16.2]} 22... Nxd6 {[%clk 0:02:14.3]} 23. Re7 {[%clk 0:02:15.6]} 23... c4
{[%clk 0:02:10.3]} 24. Be2 {[%clk 0:02:03.1]} 24... b5 {[%clk 0:02:09.6]} 25.
axb5 {[%clk 0:01:51.2]} 25... axb5 {[%clk 0:02:10.5]} 26. Bf3 {[%clk 0:01:49.3]}
26... b4 {[%clk 0:02:05.7]} 27. Ne4 {[%clk 0:01:46.8]} 27... Nxe4 {[%clk
0:02:02.6]} 28. Rxe4 {[%clk 0:01:47.7]} 28... Rac8 {[%clk 0:02:00.1]} 29. d6
{[%clk 0:01:34]} 29... Rfd8 {[%clk 0:01:58.8]} 30. Rd4 {[%clk 0:01:32.4]} 30...
c3 {[%clk 0:01:57.6]} 31. bxc3 {[%clk 0:01:32]} 31... bxc3 {[%clk 0:01:57.8]}
0-1

[Event "Late-Titled-Tuesday-Blitz-April-16-2024"]
[Site "Chess.com"]
[Date "2024.04.16"]
[Round "4"]
[White "Tolyanius"]
[Black "picturesquecheck"]
[Result "1-0"]
[WhiteElo "2620"]
[BlackElo "2405"]
[TimeControl "180+1"]
[EndTime "14:34:36 PDT"]
[Termination "Tolyanius won by resignation"]

1. e4 {[%clk 0:03:00.9]} 1... d6 {[%clk 0:02:59.4]} 2. d3 {[%clk 0:03:00.8]}
2... g6 {[%clk 0:02:59.7]} 3. h4 {[%clk 0:02:58.9]} 3... h5 {[%clk 0:02:59]} 4.
Nh3 {[%clk 0:02:58.3]} 4... Bg7 {[%clk 0:02:59]} 5. Ng5 {[%clk 0:02:58.9]} 5...
Nf6 {[%clk 0:02:59.1]} 6. c3 {[%clk 0:02:59.2]} 6... O-O {[%clk 0:02:59.1]} 7.
Be2 {[%clk 0:02:58.1]} 7... c5 {[%clk 0:02:58.8]} 8. f3 {[%clk 0:02:54.1]} 8...
Nc6 {[%clk 0:02:58.7]} 9. g4 {[%clk 0:02:54.1]} 9... b5 {[%clk 0:02:54.3]} 10.
gxh5 {[%clk 0:02:53.1]} 10... Nxh5 {[%clk 0:02:55.2]} 11. f4 {[%clk 0:02:51]}
11... Ng3 {[%clk 0:02:52]} 12. Rh2 {[%clk 0:02:51.1]} 12... Nxe2 {[%clk
0:02:51.3]} 13. Qxe2 {[%clk 0:02:51.2]} 13... b4 {[%clk 0:02:51.2]} 14. h5
{[%clk 0:02:50.2]} 14... e5 {[%clk 0:02:40.4]} 15. hxg6 {[%clk 0:02:25.1]} 15...
fxg6 {[%clk 0:02:41.3]} 16. f5 {[%clk 0:02:25.4]} 16... bxc3 {[%clk 0:02:38.7]}
17. Nxc3 {[%clk 0:02:19.2]} 17... Nd4 {[%clk 0:02:37]} 18. Qg4 {[%clk
0:02:19.5]} 18... Bxf5 {[%clk 0:02:26.4]} 19. exf5 {[%clk 0:02:17.8]} 19... Rxf5
{[%clk 0:02:27.3]} 20. Qe4 {[%clk 0:02:05.6]} 20... d5 {[%clk 0:02:14.4]} 21.
Qxd5+ {[%clk 0:02:02]} 21... Qxd5 {[%clk 0:02:13.5]} 22. Nxd5 {[%clk 0:02:02.9]}
22... Rxg5 {[%clk 0:02:10.1]} 23. Bxg5 {[%clk 0:02:02.2]} 23... Nf3+ {[%clk
0:02:08.9]} 24. Ke2 {[%clk 0:01:57.4]} 24... Nxh2 {[%clk 0:02:04.7]} 25. Rh1
{[%clk 0:01:51.3]} 25... Ng4 {[%clk 0:02:02]} 26. Rh4 {[%clk 0:01:52]} 26... Rb8
{[%clk 0:01:47.4]} 27. b3 {[%clk 0:01:51.9]} 27... Kf7 {[%clk 0:01:15.2]} 28.
Rxg4 {[%clk 0:01:51]} 28... Ke6 {[%clk 0:01:14.3]} 29. Nc3 {[%clk 0:01:46.2]}
1-0

[Event "Late-Titled-Tuesday-Blitz-April-16-2024"]
[Site "Chess.com"]
[Date "2024.04.16"]
[Round "4"]
[White "ATM622"]
[Black "Alphafischer2019"]
[Result "1-0"]
[WhiteElo "2437"]
[BlackElo "2721"]
[TimeControl "180+1"]
[EndTime "14:34:37 PDT"]
[Termination "ATM622 won by checkmate"]

1. d4 {[%clk 0:02:56.3]} 1... Nf6 {[%clk 0:02:59.8]} 2. c4 {[%clk 0:02:55.6]}
2... b6 {[%clk 0:02:59.5]} 3. Nf3 {[%clk 0:02:54]} 3... Bb7 {[%clk 0:02:58.6]}
4. Nbd2 {[%clk 0:02:54.4]} 4... g6 {[%clk 0:02:53.8]} 5. g3 {[%clk 0:02:53.7]}
5... Bg7 {[%clk 0:02:53.5]} 6. Bg2 {[%clk 0:02:54.1]} 6... O-O {[%clk
0:02:54.3]} 7. O-O {[%clk 0:02:54.4]} 7... c5 {[%clk 0:02:50.2]} 8. b3 {[%clk
0:02:48.2]} 8... cxd4 {[%clk 0:02:49.4]} 9. Nxd4 {[%clk 0:02:48.3]} 9... Bxg2
{[%clk 0:02:48.9]} 10. Kxg2 {[%clk 0:02:48.7]} 10... Nc6 {[%clk 0:02:48.1]} 11.
Nxc6 {[%clk 0:02:48.7]} 11... dxc6 {[%clk 0:02:49]} 12. Bb2 {[%clk 0:02:48.5]}
12... Qc7 {[%clk 0:02:47.2]} 13. Nf3 {[%clk 0:02:46.2]} 13... Rfd8 {[%clk
0:02:46.9]} 14. Qc2 {[%clk 0:02:46.5]} 14... c5 {[%clk 0:02:47.5]} 15. Rfd1
{[%clk 0:02:39]} 15... a6 {[%clk 0:02:38.2]} 16. Kg1 {[%clk 0:02:36.8]} 16... h5
{[%clk 0:02:30.1]} 17. Rxd8+ {[%clk 0:02:31.1]} 17... Rxd8 {[%clk 0:02:29.2]}
18. Rd1 {[%clk 0:02:31.6]} 18... Rd2 {[%clk 0:02:19.8]} 19. Qxd2 {[%clk
0:02:28.3]} 19... Bf8 {[%clk 0:02:14.8]} 20. Qd8 {[%clk 0:02:24.1]} 20... Qc6
{[%clk 0:02:14.1]} 21. Ne5 {[%clk 0:02:19.6]} 21... Qe6 {[%clk 0:02:13.9]} 22.
Qb8 {[%clk 0:02:11.9]} 22... Qf5 {[%clk 0:02:11.3]} 23. Nf3 {[%clk 0:01:57.1]}
23... Kg7 {[%clk 0:01:11.7]} 24. Bxf6+ {[%clk 0:01:56.1]} 24... exf6 {[%clk
0:01:11.1]} 25. Rd8 {[%clk 0:01:54.6]} 25... Be7 {[%clk 0:00:59.3]} 26. Rg8+
{[%clk 0:01:52.7]} 26... Kh6 {[%clk 0:00:59.3]} 27. Rh8+ {[%clk 0:01:52.5]}
27... Kg7 {[%clk 0:00:58.9]} 28. Qg8# {[%clk 0:01:53.4]} 1-0

[Event "Late-Titled-Tuesday-Blitz-April-16-2024"]
[Site "Chess.com"]
[Date "2024.04.16"]
[Round "4"]
[White "XDPS"]
[Black "B_nn_t"]
[Result "1-0"]
[WhiteElo "2820"]
[BlackElo "2561"]
[TimeControl "180+1"]
[EndTime "14:34:48 PDT"]
[Termination "XDPS won by resignation"]

1. e4 {[%clk 0:03:00.9]} 1... c5 {[%clk 0:02:57.6]} 2. Nf3 {[%clk 0:03:00.9]}
2... d6 {[%clk 0:02:57.7]} 3. d4 {[%clk 0:03:00.3]} 3... cxd4 {[%clk 0:02:58.6]}
4. Nxd4 {[%clk 0:03:01.2]} 4... Nf6 {[%clk 0:02:56.1]} 5. Nc3 {[%clk 0:03:01.4]}
5... Nc6 {[%clk 0:02:56.4]} 6. Be2 {[%clk 0:03:01.3]} 6... g6 {[%clk 0:02:55.2]}
7. Be3 {[%clk 0:03:01]} 7... Bg7 {[%clk 0:02:54.8]} 8. O-O {[%clk 0:03:01.6]}
8... O-O {[%clk 0:02:54.8]} 9. Qd2 {[%clk 0:03:01.3]} 9... Nxd4 {[%clk
0:02:54.9]} 10. Bxd4 {[%clk 0:03:01.6]} 10... a6 {[%clk 0:02:53.8]} 11. a4
{[%clk 0:03:01.3]} 11... Bd7 {[%clk 0:02:51.3]} 12. Rfd1 {[%clk 0:03:01.1]}
12... Bc6 {[%clk 0:02:47.9]} 13. f3 {[%clk 0:03:01.3]} 13... Rc8 {[%clk
0:02:46]} 14. a5 {[%clk 0:03:01.4]} 14... Qd7 {[%clk 0:02:37.3]} 15. b3 {[%clk
0:02:56.1]} 15... h5 {[%clk 0:02:34.2]} 16. Nd5 {[%clk 0:02:48.9]} 16... Bxd5
{[%clk 0:02:30.8]} 17. exd5 {[%clk 0:02:49]} 17... Ne8 {[%clk 0:02:28.3]} 18. c4
{[%clk 0:02:47.7]} 18... Bxd4+ {[%clk 0:02:15.5]} 19. Qxd4 {[%clk 0:02:48.6]}
19... Nf6 {[%clk 0:02:16]} 20. b4 {[%clk 0:02:43.9]} 20... Qc7 {[%clk
0:02:12.6]} 21. Kh1 {[%clk 0:02:43.3]} 21... Nd7 {[%clk 0:02:12.2]} 22. f4
{[%clk 0:02:41.2]} 22... Nf6 {[%clk 0:02:11.6]} 23. Bd3 {[%clk 0:02:39.9]} 23...
Qd7 {[%clk 0:02:06.4]} 24. Re1 {[%clk 0:02:36]} 24... h4 {[%clk 0:02:05.9]} 25.
f5 {[%clk 0:02:01.8]} 25... h3 {[%clk 0:02:03.9]} 26. gxh3 {[%clk 0:02:02.1]}
26... Kg7 {[%clk 0:01:45.7]} 27. fxg6 {[%clk 0:02:02.3]} 27... fxg6 {[%clk
0:01:45.1]} 28. Re6 {[%clk 0:02:01.9]} 28... Rh8 {[%clk 0:01:43.2]} 29. Rg1
{[%clk 0:02:01]} 29... Rh6 {[%clk 0:01:41.1]} 30. Qe3 {[%clk 0:01:52.8]} 30...
Ng8 {[%clk 0:01:19.8]} 31. Bxg6 {[%clk 0:01:40.6]} 1-0

[Event "Late-Titled-Tuesday-Blitz-April-16-2024"]
[Site "Chess.com"]
[Date "2024.04.16"]
[Round "4"]
[White "Beca95"]
[Black "RuperezA"]
[Result "0-1"]
[WhiteElo "2837"]
[BlackElo "2602"]
[TimeControl "180+1"]
[EndTime "14:34:49 PDT"]
[Termination "RuperezA won by resignation"]

1. d4 {[%clk 0:02:59.4]} 1... e6 {[%clk 0:03:00.9]} 2. Nf3 {[%clk 0:02:58.4]}
2... d5 {[%clk 0:03:01.8]} 3. c4 {[%clk 0:02:58.1]} 3... Nf6 {[%clk 0:03:02.3]}
4. Bg5 {[%clk 0:02:57.9]} 4... Be7 {[%clk 0:03:02.8]} 5. e3 {[%clk 0:02:56.3]}
5... O-O {[%clk 0:03:01.7]} 6. Qc2 {[%clk 0:02:56.2]} 6... Ne4 {[%clk
0:02:49.6]} 7. Bxe7 {[%clk 0:02:55.1]} 7... Qxe7 {[%clk 0:02:50.5]} 8. Bd3
{[%clk 0:02:55.2]} 8... f5 {[%clk 0:02:45.6]} 9. Nbd2 {[%clk 0:02:55]} 9... Nd7
{[%clk 0:02:40.5]} 10. cxd5 {[%clk 0:02:53.8]} 10... exd5 {[%clk 0:02:41.4]} 11.
Qxc7 {[%clk 0:02:52.6]} 11... f4 {[%clk 0:02:12.4]} 12. Bxe4 {[%clk 0:02:24.7]}
12... dxe4 {[%clk 0:02:10.3]} 13. Ne5 {[%clk 0:02:24.4]} 13... fxe3 {[%clk
0:02:07.9]} 14. fxe3 {[%clk 0:02:23.6]} 14... Qg5 {[%clk 0:01:14.9]} 15. O-O-O
{[%clk 0:01:57]} 15... Nxe5 {[%clk 0:01:13.5]} 16. Qxe5 {[%clk 0:01:56.4]} 16...
Qxe5 {[%clk 0:00:59.8]} 17. dxe5 {[%clk 0:01:56.3]} 17... Bg4 {[%clk 0:01:00.7]}
18. Rde1 {[%clk 0:01:54]} 18... Rac8+ {[%clk 0:00:53.3]} 19. Kb1 {[%clk
0:01:53.5]} 19... Rf2 {[%clk 0:00:53.1]} 20. Rc1 {[%clk 0:01:52.8]} 20... Rxd2
{[%clk 0:00:50.1]} 21. Rxc8+ {[%clk 0:01:52.4]} 21... Bxc8 {[%clk 0:00:51]} 0-1

[Event "Late-Titled-Tuesday-Blitz-April-16-2024"]
[Site "Chess.com"]
[Date "2024.04.16"]
[Round "4"]
[White "Guriempire"]
[Black "Stanbad1"]
[Result "1-0"]
[WhiteElo "2812"]
[BlackElo "2627"]
[TimeControl "180+1"]
[EndTime "14:35:12 PDT"]
[Termination "Guriempire won by resignation"]

1. e4 {[%clk 0:03:00.9]} 1... e6 {[%clk 0:02:59.9]} 2. d4 {[%clk 0:03:00.2]}
2... d5 {[%clk 0:03:00]} 3. Nc3 {[%clk 0:03:00.8]} 3... Nf6 {[%clk 0:02:58]} 4.
e5 {[%clk 0:03:00.9]} 4... Nfd7 {[%clk 0:02:58.3]} 5. f4 {[%clk 0:03:01.5]} 5...
c5 {[%clk 0:02:58.9]} 6. Nf3 {[%clk 0:03:01.9]} 6... Nc6 {[%clk 0:02:59.5]} 7.
Be3 {[%clk 0:02:58.5]} 7... a6 {[%clk 0:02:59.4]} 8. Ne2 {[%clk 0:02:54.8]} 8...
cxd4 {[%clk 0:02:56.6]} 9. Nexd4 {[%clk 0:02:52.9]} 9... Bc5 {[%clk 0:02:56.6]}
10. c3 {[%clk 0:02:49]} 10... O-O {[%clk 0:02:54.5]} 11. a3 {[%clk 0:02:43.5]}
11... Qe7 {[%clk 0:02:54.1]} 12. Bd3 {[%clk 0:02:43.2]} 12... f6 {[%clk
0:02:53.8]} 13. exf6 {[%clk 0:02:35.7]} 13... Nxf6 {[%clk 0:02:53.6]} 14. O-O
{[%clk 0:02:36]} 14... Ng4 {[%clk 0:02:52]} 15. Bxh7+ {[%clk 0:02:08.8]} 15...
Kxh7 {[%clk 0:02:36.9]} 16. Ng5+ {[%clk 0:02:08.2]} 16... Qxg5 {[%clk
0:02:09.7]} 17. fxg5 {[%clk 0:02:06.2]} 17... Rxf1+ {[%clk 0:02:10.3]} 18. Qxf1
{[%clk 0:02:03.5]} 18... Nxe3 {[%clk 0:02:08.5]} 19. Qd3+ {[%clk 0:01:58.8]}
19... Nf5 {[%clk 0:02:06.8]} 20. g4 {[%clk 0:01:58.6]} 20... Ne5 {[%clk
0:02:02.5]} 21. Qh3+ {[%clk 0:01:57.4]} 21... Nh4 {[%clk 0:01:56.8]} 22. Qxh4+
{[%clk 0:01:55.3]} 22... Kg8 {[%clk 0:01:57.4]} 23. Qg3 {[%clk 0:01:50.7]} 23...
Nc4 {[%clk 0:01:54.6]} 24. Qc7 {[%clk 0:01:19.5]} 24... Bd6 {[%clk 0:01:52.7]}
25. Qd8+ {[%clk 0:01:18.4]} 25... Kh7 {[%clk 0:01:50.3]} 26. Rf1 {[%clk
0:01:04.9]} 26... Rb8 {[%clk 0:01:46.1]} 27. Rf7 {[%clk 0:00:52.6]} 27... e5
{[%clk 0:01:45.4]} 28. Qf6 {[%clk 0:00:47.4]} 28... Bf8 {[%clk 0:01:44]} 29. g6+
{[%clk 0:00:43.5]} 29... Kh6 {[%clk 0:01:43.3]} 30. Qh4+ {[%clk 0:00:43]} 1-0